Cogmind - Beta 14 @@@ ROGUE MODE // 2025.05.04 @ 14:19:23 Player: obl-vn Result: Destroyed by Y-54 Guardian with Gatling Laser Performance ------------- Evolutions (3) 1500 Regions Visited (11) 2200 Robots Destroyed (116) 580 Value Destroyed (4099) 4099 Prototype IDs (26) 520 Alien Tech Used (0) 0 Bonus (1397) 1397 TOTAL SCORE: 10296 Bonus ------- High Alert Combat Kills 132 Follower Combat Kills 65 Entered Garrisons 400 Used RIF Installer 500 Aligned with FarCom 300 Cogmind --------- Core Integrity 0/700 Matter 59/300 Energy 152/160 System Corruption 4% Temperature Cool (24) Movement Flying (26) Location -7/Garrison Parts ------- > --- POWER (2) -------- Light Nuclear Core > --- PROPULSION (4) --- VTOL Module VTOL Module VTOL Module VTOL Module > --- UTILITY (5) ------ Advanced Targeting Computer Improved Target Analyzer Relay Coupler [Grunt] (29) Relay Coupler [Grunt] (34) Relay Coupler [Brawler] (6) > --- WEAPON (2) ------- KE Penetrator > --- INVENTORY (5) ---- Light Quantum Reactor Relay Coupler [NC] (30) Relay Coupler [Duelist] (27) Relay Coupler [Sentry] (18) Relay Coupler [Sentry] (18) Peak State ------------ > --- POWER ------------ Heavy Ion Engine Micro Nuclear Core > --- PROPULSION ------- Flying Fortress v7 > --- UTILITY ---------- Medium Storage Unit Improved Targeting Computer Improved Light Armor Plating Improved Shield Generator Dynamic Insulation System > --- WEAPON ----------- Advanced Assault Cannon Remote Datajack > --- INVENTORY -------- Gravmag System Gravmag System Antigrav System Improved Cooling System Advanced Weight Redist. System Particle Charger Dynamic Insulation System Improved Trap Extractor Missile Launcher Improved Datajack [Rating: 64] Favorites ----------- Power Micro Nuclear Core Engine Heavy Ion Engine Power Core Micro Nuclear Core Reactor Light Quantum Reactor Propulsion Light Treads Treads Light Treads Leg Aluminum Leg Hover Unit Gravmag System Flight Unit Flying Fortress v7 Utility Medium Storage Unit Device Improved Shield Generator Storage Medium Storage Unit Processor Improved Targeting Computer Hackware Relay Coupler [Brawler] Protection Hardened Light Armor Plating Weapon EM Pulse Cannon Energy Gun Gatling Laser Energy Cannon EM Pulse Cannon Ballistic Gun Assault Rifle Ballistic Cannon Light Cannon Launcher Missile Launcher Special Weapon Remote Datajack Slashing Weapon Chainsword Special Melee Weapon Improved Datajack Build | -11 -10 -10 -9 -9 -9 -8 -8 -7 -7 -7 -7 ------- Run | Yrd Mat Min Mat Min Exi Min Mat Fac Gar Fac Gar Slots Evolved 6 | . . . 2 . . . 2 2 . . . Power 1 | . . . . . . . . 1 . . . Propulsion 2 | . . . . . . . 2 . . . . Utility 3 | . . . 2 . . . . 1 . . . Weapon . | . . . . . . . . . . . . Parts Attached 150 | 7 7 5 33 . 1 1 5 11 10 30 40 Power 14 | 1 1 1 2 . . . 1 1 . 2 5 Engine 5 | 1 1 1 . . . . 1 1 . . . Core 7 | . . . 2 . . . . . . 2 3 Reactor 2 | . . . . . . . . . . . 2 Propulsion 35 | 2 1 . 10 . . . 1 . . 7 14 Treads 9 | 2 1 . 6 . . . . . . . . Leg 5 | . . . . . . . . . . . 5 Wheel . | . . . . . . . . . . . . Hover 13 | . . . 4 . . . . . . 6 3 Flight 8 | . . . . . . . 1 . . 1 6 Utility 58 | 2 3 3 16 . . 1 2 10 1 10 10 Device 21 | 1 . 1 3 . . . 1 3 . 9 3 Storage 4 | 1 1 . 2 . . . . . . . . Processor 3 | . . . 1 . . . . . . . 2 Hackware 8 | . . . . . . . . 3 . . 5 Protection 22 | . 2 2 10 . . 1 1 4 1 1 . Artifact . | . . . . . . . . . . . . Weapon 43 | 2 2 1 5 . 1 . 1 . 9 11 11 Energy Gun 4 | . . . 1 . . . . . . 3 . Energy Cannon 13 | . . . 4 . 1 . 1 . 4 . 3 Ballistic Gun 5 | 2 . . . . . . . . . . 3 Ballistic Cannon 5 | . 2 1 . . . . . . . 2 . Launcher 7 | . . . . . . . . . 4 2 1 Special Weapon 4 | . . . . . . . . . . 3 1 Impact Weapon . | . . . . . . . . . . . . Slashing Weapon 4 | . . . . . . . . . . 1 3 Piercing Weapon . | . . . . . . . . . . . . Special Melee Weapon 1 | . . . . . . . . . 1 . . Unidentified Prototypes 3 | . . . 1 . . . 1 . . 1 . Parts Lost 23 | . . 1 1 . . . . . 1 2 18 Power 2 | . . . . . . . . . . . 2 Propulsion 8 | . . . . . . . . . . 1 7 Utility 7 | . . 1 . . . . . . . 1 5 Weapon 6 | . . . 1 . . . . . 1 . 4 Highest Loss Streak 13 | . . 1 1 . . . . . 1 1 13 To Critical Strikes . | . . . . . . . . . . . . Average Slot Usage (%) 91 | . 99 100 99 100 100 100 71 76 76 91 80 Engine 4 | . 14 14 3 . . . 4 15 15 3 . Core 7 | . . . 7 11 11 11 4 . . 11 7 Treads 11 | . 28 28 21 22 22 22 . . . . . Leg 1 | . . . . . . . . . . . 10 Hover 6 | . . . . . . . . . . 20 10 Flight 2 | . . . . . . . 9 7 7 2 5 Device 7 | . 5 . 2 . . . . 7 7 21 9 Storage 9 | . 14 14 11 11 11 11 9 7 7 7 2 Processor 6 | . . . 8 11 11 11 9 7 7 4 6 Hackware 1 | . . . . . . . . . . . 11 Protection 12 | . 8 13 22 22 22 22 17 14 15 2 . Energy Gun 1 | . . . . . . . . . . 4 1 Energy Cannon 8 | . . . 13 22 22 22 17 15 10 . . Ballistic Gun 1 | . 14 . . . . . . . . . 5 Ballistic Cannon 4 | . 13 28 7 . . . . . . 1 . Special Weapon 1 | . . . . . . . . . . 5 1 Peak Build Rating 64 | 7 8 9 22 20 22 23 52 60 58 64 57 Average Rating 33 | 4 7 8 17 20 20 22 51 58 57 53 41 On Entrance 27 | . 7 8 9 20 20 22 23 52 58 58 50 Naked Turns . | . . . . . . . . . . . . Heaviest Build 48 | 13 24 24 39 39 39 39 38 48 48 48 40 Greatest Support 70 | 40 40 40 40 40 40 40 50 50 50 50 70 Greatest Overweight (x) 6 | 1 . . 2 . . . . . . . 6 Average Overweight (x) . | . . . . . . . . . . . . Largest Inventory Capacity 10 | 8 10 10 10 10 10 10 10 10 10 10 10 Average Capacity 9 | 7 8 10 10 10 10 10 10 10 10 10 6 Most Carried 10 | 4 10 10 10 10 10 10 10 10 8 10 10 Average Carried 8 | 2 7 9 9 10 9 9 9 9 7 9 6 Final Capacity 10 | 8 10 10 10 10 10 10 10 10 10 10 5 Final Carried 10 | 3 10 9 10 10 10 10 10 7 7 10 5 Class Distribution -------------------- 93% | Mutant 3% | Scavenger-Mutant Dominant Class ---------------- Mutant | -10/Materials Mutant | -10/Mines Mutant | -9/Materials Mutant | -9/Mines Mutant | -9/Exiles Mutant | -8/Mines Mutant | -8/Materials Mutant | -7/Factory Mutant | -7/Garrison Mutant | -7/Factory Mutant | -7/Garrison Resources | -11 -10 -10 -9 -9 -9 -8 -8 -7 -7 -7 -7 ----------- Run | Yrd Mat Min Mat Min Exi Min Mat Fac Gar Fac Gar Matter Collected 2783 | 257 226 366 537 . . 20 53 . 398 355 571 Remotely 118 | . . . 118 . . . . . . . . Salvage Created 3852 | 18 320 38 1056 109 . 144 316 . 852 415 584 Parts 232 | 4 23 . 70 6 . 5 22 . 38 32 32 Haulers Intercepted 3 | . 1 . 2 . . . . . . . . Recyclers Shooed 2 | . . . 2 . . . . . . . . Parts Field Recycled . | . . . . . . . . . . . . Retrieved Matter . | . . . . . . . . . . . . Parts Self-Destructed . | . . . . . . . . . . . . Prevented . | . . . . . . . . . . . . Kills | -11 -10 -10 -9 -9 -9 -8 -8 -7 -7 -7 -7 ------- Run | Yrd Mat Min Mat Min Exi Min Mat Fac Gar Fac Gar Combat Hostiles Destroyed 101 | . 8 10 24 2 . 3 6 . 21 9 18 Melee 2 | . . . . . . . . . . . 2 Guns 18 | . 6 . . . . . . . . 4 8 Cannons 55 | . 2 10 23 2 . 2 6 . 6 3 1 AOE 23 | . . . . . . 1 . . 13 2 7 Classes Destroyed 15 | 1 5 1 5 . . . . . 2 1 . Worker 3 | . 1 . . . . . . . . 2 . Builder 3 | . . . 2 . . . . . . 1 . Tunneler 1 | 1 . . . . . . . . . . . Hauler 3 | . 1 . 2 . . . . . . . . Recycler 2 | . . . 2 . . . . . . . . Mechanic 1 | . . . . . . . . . . 1 . Operator 6 | . 2 . 1 . . . 2 . . 1 . Watcher 6 | . . . 3 . . . 2 . . 1 . Swarmer 37 | . 3 . 12 . . . 3 . 7 3 9 Grunt 32 | . 5 . 8 2 . 2 . . 10 . 5 Brawler 2 | . . . 1 . . 1 . . . . . Duelist 4 | . . . . . . . . . 1 . 3 Sentry 10 | . . . 3 . . . 3 . 2 2 . Programmer 6 | . . . . . . . . . 1 4 1 Assembled 10 | . . 10 . . . . . . . . . Best Kill Streak 12 | 1 4 3 7 2 . 3 7 . 12 4 6 Combat Bots Only 12 | . 3 3 4 2 . 3 3 . 12 3 6 Max Kills in Single Turn 3 | 1 1 2 2 1 . 1 1 . 3 2 2 Gunslinging . | . . . . . . . . . . . . Exploded 3 | . . . . . . 1 . . 3 2 2 Melee 1 | . . . . . . . . . . . 1 Uniques/NPCs Destroyed . | . . . . . . . . . . . . Combat | -11 -10 -10 -9 -9 -9 -8 -8 -7 -7 -7 -7 -------- Run | Yrd Mat Min Mat Min Exi Min Mat Fac Gar Fac Gar Hostile Shots Fired 602 | . 31 40 101 6 . 7 30 . 158 79 150 Missed 216 | . 9 7 26 1 . 1 11 . 75 31 55 Damage Taken 4922 | . 240 531 764 77 . 117 206 . 957 385 1645 Core 916 | . 34 12 102 . . 50 10 . 51 110 547 Absorbed by Shields 273 | . . . . . . . . . 67 127 79 Regen/Repaired (Parts) 167 | . . . 115 . . . 52 . . . . Core Remaining (%) 85 | 100 . 81 . . . 62 98 . . . . Volleys Fired 282 | 3 33 28 58 4 . 5 16 . 27 42 66 Largest 2 | 2 2 2 2 2 . 2 2 . 2 2 2 Hottest 128 | 40 70 74 126 126 . 126 126 . 126 128 80 Shots Fired 446 | 6 66 55 108 6 . 10 28 . 45 48 74 Gun 126 | 6 52 . 4 . . . . . . 17 47 Cannon 274 | . 14 55 104 6 . 10 28 . 32 16 9 Launcher 26 | . . . . . . . . . 13 4 9 Special 20 | . . . . . . . . . . 11 9 Kinetic 214 | 6 66 55 38 . . . . . . 13 36 Thermal 30 | . . . . . . . . . . 17 13 Explosive 26 | . . . . . . . . . 13 4 9 Electromagnetic 156 | . . . 70 6 . 10 28 . 32 3 7 Robot Hit Streak 24 | 3 5 4 19 11 . 4 14 . 19 24 8 Robot Miss Streak 8 | 1 4 8 3 . . 1 3 . 2 4 3 Penetration Max 1 | . . . . . . . . . . . 1 Secondary Targets . | . . . . . . . . . . . . Shots Hit Robots 291 | 4 35 23 67 5 . 6 19 . 40 34 58 Core Hits 196 | 1 17 14 35 3 . 4 10 . 49 26 37 Critical Kills . | . . . . . . . . . . . . Critical Parts Destroyed 1 | . 1 . . . . . . . . . . Critical Strikes 6 | . 1 . 1 . . . . . 1 1 2 Destroy 1 | . 1 . . . . . . . . . . Blast 2 | . . . 1 . . . . . . 1 . Corrupt 1 | . . . . . . . . . 1 . . Sever 2 | . . . . . . . . . . . 2 Melee Attacks 16 | . . . . . . . . . 2 2 12 Impact . | . . . . . . . . . . . . Slashing 14 | . . . . . . . . . . 2 12 Piercing . | . . . . . . . . . . . . Sneak Attacks . | . . . . . . . . . . . . Combat Hostiles . | . . . . . . . . . . . . Follow-up Attacks . | . . . . . . . . . . . . Damage Inflicted 10013 | 44 507 485 1748 130 . 227 666 . 3030 969 2207 Guns 1533 | 44 362 . 23 . . . . . . 426 678 Cannons 4025 | . 145 485 1599 130 . 167 581 . 560 222 136 Explosions 4140 | . . . 116 . . 60 85 . 2470 321 1088 Melee 305 | . . . . . . . . . . . 305 Ramming 10 | . . . 10 . . . . . . . . Kinetic 2187 | 44 507 485 524 . . . . . . 158 469 Thermal 956 | . . . 116 . . 60 85 . 60 426 209 Explosive 3819 | . . . . . . . . . 2410 321 1088 Electromagnetic 2736 | . . . 1098 130 . 167 581 . 560 64 136 Impact . | . . . . . . . . . . . . Slashing 305 | . . . . . . . . . . . 305 Piercing . | . . . . . . . . . . . . Highest Corruption 4 | . . . . . . . . . 1 2 4 Average Corruption 1 | . . . . . . . . . 1 1 3 Corruption Purged 1 | . . . . . . . . . . 1 . Corruption Blocked . | . . . . . . . . . . . . Effects 29 | . . . . . . . . . . 11 18 Message Errors 7 | . . . . . . . . . . 4 3 Matter Fused 6 | . . . . . . . . . . 3 3 Heat Flow Errors 7 | . . . . . . . . . . 3 4 Energy Discharges 5 | . . . . . . . . . . . 5 Parts Rejected 1 | . . . . . . . . . . . 1 Data Loss (minor) 3 | . . . . . . . . . . 1 2 Overload Shots . | . . . . . . . . . . . . Overflow Damage 213 | . . 26 32 . . . 37 . 32 24 62 Projectiles 95 | . . 26 32 . . . 26 . . 11 . Explosions 118 | . . . . . . . 11 . 32 13 62 Melee . | . . . . . . . . . . . . Knockbacks 17 | . . 13 3 . . . . . . 1 . Impact . | . . . . . . . . . . . . Kinetic 16 | . . 12 3 . . . . . . 1 . Secondary 1 | . . 1 . . . . . . . . . Self-Inflicted Damage 119 | . . . . . . 51 . . 68 . . Shots 3 | . . . . . . 1 . . 2 . . Rammed 1 | . . . 1 . . . . . . . . Targets Rammed 1 | . . . 1 . . . . . . . . Kicked . | . . . . . . . . . . . . Crushed . | . . . . . . . . . . . . Highest Temperature 455 | . 66 316 369 200 . 324 455 . 240 293 264 Average Temperature 107 | . 25 108 119 100 . 124 170 . 81 79 80 Received Heat Transfer 1213 | . 93 300 153 42 . 18 36 . 216 40 315 Effects 12 | . . 3 6 . . . 3 . . . . Shutdowns 2 | . . . 1 . . . 1 . . . . Energy Bleed 5 | . . 1 3 . . . 1 . . . . Interference 3 | . . 2 1 . . . . . . . . Matter Decay 2 | . . . 1 . . . 1 . . . . Siege Activations . | . . . . . . . . . . . . Robots Corrupted 3 | . . . 1 . . . . . 2 . . Combat Hostiles 3 | . . . 1 . . . . . 2 . . Parts Fried 16 | . . . 4 . . . 7 . 4 1 . Impact Corruptions . | . . . . . . . . . . . . Robots Melted . | . . . . . . . . . . . . Combat Hostiles . | . . . . . . . . . . . . Parts Melted 2 | . . . . . . . . . . 1 1 Heat Transferred 1775 | . . . 200 . . . 150 . 100 850 475 Parts Sabotaged . | . . . . . . . . . . . . Parts Stolen . | . . . . . . . . . . . . Parts Stripped . | . . . . . . . . . . . . Power Chain Reactions 6 | . . . 3 . . 1 1 . 1 . . Alert | -11 -10 -10 -9 -9 -9 -8 -8 -7 -7 -7 -7 ------- Run | Yrd Mat Min Mat Min Exi Min Mat Fac Gar Fac Gar Peak Influence 590 | 5 229 66 531 257 . 140 211 50 578 390 590 Initial 303 | . 3 66 2 207 . . . 27 35 303 114 Average 162 | . 108 41 236 202 . 50 49 33 340 141 375 Maximum Alert Level 2 | . 1 . 2 1 . . 1 . 2 1 2 Low Security (%) 66 | 100 89 100 41 21 . 100 99 100 38 74 4 Level 1 22 | . 10 . 33 78 . . . . 5 25 51 Level 2 11 | . . . 25 . . . . . 55 . 43 Level 3 . | . . . . . . . . . . . . Level 4 . | . . . . . . . . . . . . Level 5 . | . . . . . . . . . . . . High Security . | . . . . . . . . . . . . Max Security . | . . . . . . . . . . . . Squads Dispatched 9 | . 2 . 2 . . . 1 . . 4 . Investigation 1 | . . . 1 . . . . . . . . Extermination 4 | . . . . . . . . . . 4 . Reinforcement 4 | . 2 . 1 . . . 1 . . . . Assault . | . . . . . . . . . . . . Garrison . | . . . . . . . . . . . . Intercept . | . . . . . . . . . . . . Searches Triggered . | . . . . . . . . . . . . Construction Impeded 1 | . . . . . . . 1 . . . . Haulers Reinforced . | . . . . . . . . . . . . Active Scanning Responses . | . . . . . . . . . . . . Cargo Convoy Interrupts . | . . . . . . . . . . . . Stealth | -11 -10 -10 -9 -9 -9 -8 -8 -7 -7 -7 -7 --------- Run | Yrd Mat Min Mat Min Exi Min Mat Fac Gar Fac Gar Distress Signals 9 | . . 3 3 . . . 2 . . 1 . Communications Jammed 4 | . . . . . . . . . . 4 . Distress Signals 4 | . . . . . . . . . . 4 . Times Spotted 158 | . 19 11 36 2 . 7 11 . 21 17 34 Peak Tracking Total 10 | . 4 3 5 2 . 3 5 . 6 4 10 Tactical Retreats 20 | . 6 . 6 . . . . . 1 2 5 Traps | -11 -10 -10 -9 -9 -9 -8 -8 -7 -7 -7 -7 ------- Run | Yrd Mat Min Mat Min Exi Min Mat Fac Gar Fac Gar Traps Triggered 17 | . . . 1 . . . . . 4 1 11 Indirectly . | . . . . . . . . . . . . Trap Hack Attempts . | . . . . . . . . . . . . Triggered . | . . . . . . . . . . . . Disarmed . | . . . . . . . . . . . . Reprogrammed 4 | . . . . . . . 4 . . . . Reused 1 | . . 1 . . . . . . . . . Traps Extracted . | . . . . . . . . . . . . Installed 2 | . . 2 . . . . . . . . . Triggered . | . . . . . . . . . . . . Machines | -11 -10 -10 -9 -9 -9 -8 -8 -7 -7 -7 -7 ---------- Run | Yrd Mat Min Mat Min Exi Min Mat Fac Gar Fac Gar Machines Disabled 10 | . 2 . 2 . . . 1 . 1 1 3 Max in Single Turn 1 | . 1 . 1 . . . 1 . 1 1 1 Garrison Relay 3 | . . . . . . . . . . . 3 Machines Repaired . | . . . . . . . . . . . . Machines Dismantled . | . . . . . . . . . . . . Machines Sabotaged . | . . . . . . . . . . . . Overloaded Fab Kills . | . . . . . . . . . . . . Hacking | -11 -10 -10 -9 -9 -9 -8 -8 -7 -7 -7 -7 --------- Run | Yrd Mat Min Mat Min Exi Min Mat Fac Gar Fac Gar Machines Accessed 22 | . 1 . 4 . 1 . 4 1 2 8 1 Terminals 16 | . 1 . 3 . . . 3 . 2 6 1 Fabricators 1 | . . . . . . . . . . 1 . Repair Stations 2 | . . . 1 . . . 1 . . . . Recycling Units . | . . . . . . . . . . . . Scanalyzers . | . . . . . . . . . . . . Garrison Access 2 | . . . . . . . . 1 . 1 . Total Hacks 40 | . 1 . 9 . 1 . 8 1 2 15 3 Successful 24 | . 1 . 8 . 1 . 5 1 . 7 1 Failed 16 | . . . 1 . . . 3 . 2 8 2 Catastrophic 2 | . . . . . . . 1 . . 1 . Database Lockouts . | . . . . . . . . . . . . Manual 5 | . . . 1 . 1 . 2 . . 1 . Terminals 29 | . 1 . 7 . . . 6 . 2 10 3 Fabricators 4 | . . . . . . . . . . 4 . Repair Stations 4 | . . . 2 . . . 2 . . . . Recycling Units . | . . . . . . . . . . . . Scanalyzers . | . . . . . . . . . . . . Garrison Access 2 | . . . . . . . . 1 . 1 . Terminal Hacks 16 | . 1 . 6 . 1 . 3 . . 4 1 Record 5 | . . . 4 . . . 1 . . . . Branch Access Points 1 | . . . 1 . . . . . . . . Alert Level 1 | . . . 1 . . . . . . . . Unreport Threat 2 | . . . . . . . 1 . . 1 . Locate Traps 2 | . 1 . . . . . . . . 1 . Reprogram Traps 1 | . . . . . . . 1 . . . . Zone Layout 2 | . . . . . . . . . . 2 . Patrol Navigation 1 | . . . . . . . . . . . 1 Derelict Proto ID Bank 1 | . . . . . 1 . . . . . . Fabricator Hacks 2 | . . . . . . . . . . 2 . Network Status 1 | . . . . . . . . . . 1 . Build 1 | . . . . . . . . . . 1 . Repair Station Hacks 4 | . . . 2 . . . 2 . . . . Scan Component 2 | . . . 1 . . . 1 . . . . Repair 2 | . . . 1 . . . 1 . . . . Recycling Unit Hacks . | . . . . . . . . . . . . Scanalyzer . | . . . . . . . . . . . . Garrison Access Hacks 2 | . . . . . . . . 1 . 1 . Unlock Access 2 | . . . . . . . . 1 . 1 . Unauthorized Hacks . | . . . . . . . . . . . . Terminals . | . . . . . . . . . . . . Fabricators . | . . . . . . . . . . . . Repair Stations . | . . . . . . . . . . . . Recycling Units . | . . . . . . . . . . . . Scanalyzers . | . . . . . . . . . . . . Garrison Access . | . . . . . . . . . . . . Data Cores Recovered 2 | . . . . . . . 2 . . . . Used . | . . . . . . . . . . . . Hacking Detections 11 | . 1 . 1 . . . 2 . 2 4 1 Full Trace Events . | . . . . . . . . . . . . Feedback Events . | . . . . . . . . . . . . Feedback Blocked . | . . . . . . . . . . . . Robot Schematics Acquired . | . . . . . . . . . . . . Robots Built . | . . . . . . . . . . . . Authchips . | . . . . . . . . . . . . Time . | . . . . . . . . . . . . Total Robot Build Rating . | . . . . . . . . . . . . Part Schematics Acquired . | . . . . . . . . . . . . Parts Built 2 | . . . . . . . . . . 2 . Authchips . | . . . . . . . . . . . . Time 84 | . . . . . . . . . . 84 . Total Part Build Rating 8 | . . . . . . . . . . 8 . Parts Repaired 2 | . . . 1 . . . 1 . . . . Time 64 | . . . 26 . . . 38 . . . . Parts Recycled . | . . . . . . . . . . . . Recycled Matter . | . . . . . . . . . . . . Retrieved Matter . | . . . . . . . . . . . . Retrieved Components . | . . . . . . . . . . . . Parts Scanalyzed . | . . . . . . . . . . . . Part Schematics Acquired . | . . . . . . . . . . . . Parts Damaged . | . . . . . . . . . . . . Bothacking | -11 -10 -10 -9 -9 -9 -8 -8 -7 -7 -7 -7 ------------ Run | Yrd Mat Min Mat Min Exi Min Mat Fac Gar Fac Gar Used RIF Installer 1 | . . . . . . . . . 1 . . Robots Hacked 12 | . . . . . . . . . . 7 5 Non-combat 7 | . . . . . . . . . . 7 . Combat 5 | . . . . . . . . . . . 5 Robot Hacks Applied 13 | . . . . . . . . . . 8 5 no_distress 4 | . . . . . . . . . . 4 . find_fabricator 1 | . . . . . . . . . . 1 . find_recycling 1 | . . . . . . . . . . 1 . ignore_parts 1 | . . . . . . . . . . 1 . find_station 1 | . . . . . . . . . . 1 . disable_weapons 1 | . . . . . . . . . . . 1 streamctrl_high 3 | . . . . . . . . . . . 3 formatsys_high 1 | . . . . . . . . . . . 1 Relay Couplers Released 21 | . . . . . . . . . 3 . 18 Machine Destruction 15 | . . . . . . . . . . . 15 Programmers 6 | . . . . . . . . . 3 . 3 Attached 5 | . . . . . . . . . . . 5 Fabnet Peak Effective % . | . . . . . . . . . . . . Robots Rewired . | . . . . . . . . . . . . Allies Hacked . | . . . . . . . . . . . . Hacks Repelled . | . . . . . . . . . . . . Allies | -11 -10 -10 -9 -9 -9 -8 -8 -7 -7 -7 -7 -------- Run | Yrd Mat Min Mat Min Exi Min Mat Fac Gar Fac Gar Total Allies 7 | . . . . 3 . . . . . . 4 Largest Group 4 | . . . . 3 3 3 . . . . 4 Highest-Rated Group 70 | . . . . 40 40 40 . . . . 70 Highest-Rated Ally 20 | . . . . 16 16 16 . . . . 20 Total Orders . | . . . . . . . . . . . . Ally Attacks 49 | . . . . . . 16 . . . . 33 Total Damage 632 | . . . . . . 135 . . . . 497 Kills 5 | . . . . . . 4 . . . . 1 Allies Corrupted . | . . . . . . . . . . . . Allies Melted 1 | . . . . . . . . . . . 1 Intel | -11 -10 -10 -9 -9 -9 -8 -8 -7 -7 -7 -7 ------- Run | Yrd Mat Min Mat Min Exi Min Mat Fac Gar Fac Gar Robot Analysis Total . | . . . . . . . . . . . . Derelict Logs Recovered . | . . . . . . . . . . . . Drone Launches . | . . . . . . . . . . . . Drone Recoveries . | . . . . . . . . . . . . Exploration | -11 -10 -10 -9 -9 -9 -8 -8 -7 -7 -7 -7 ------------- Run | Yrd Mat Min Mat Min Exi Min Mat Fac Gar Fac Gar Turns Passed 9820 | 117 742 664 1458 510 339 1082 797 162 427 2500 1022 Spaces Moved 7195 | 62 309 311 599 300 208 510 651 284 407 2852 702 Core 53 | 16 . . . . . . . . . . 37 Treads 2284 | 46 309 311 597 300 208 510 3 . . . . Legs 210 | . . . . . . . . . . . 210 Wheels . | . . . . . . . . . . . . Hover 2172 | . . . 2 . . . . . . 1885 285 Flight 2476 | . . . . . . . 648 284 407 967 170 Fastest Speed 26 | 50 160 160 160 160 160 160 50 50 50 48 26 Average Speed 86 | 138 160 160 160 160 160 160 50 50 50 48 66 Slowest Speed 350 | 160 160 160 176 160 160 160 160 50 50 52 350 Overloaded Moves . | . . . . . . . . . . . . Propulsion Burnouts . | . . . . . . . . . . . . Robots Hopped 11 | . . . . . . . 8 . . 1 2 Cave-ins Triggered . | . . . . . . . . . . . . Exploration Rate (%) 49 | 4 52 69 48 61 61 91 37 8 56 52 53 Regions Visited 11 Branch Regions 4 Pre-discovered Areas . | . . . . . . . . . . . . Known Exits Taken 3 | . . . 1 . . . . 1 . 1 . Unknown Exits Taken 7 | 1 1 1 . 1 1 1 1 . . . . Scrap Searched 1 | . . . . . . 1 . . . . . Spaces Dug 14 | . . . . . . . . . . 12 2 Terrain Destroyed 149 | . . 5 14 . . 10 2 . 23 21 74 Melee 2 | . . . . . . . . . . 2 . Projectile 16 | . . 5 2 . . . . . . 5 4 AOE 131 | . . . 12 . . 10 2 . 23 14 70 Terrain Rammed . | . . . . . . . . . . . . Walls Destroyed . | . . . . . . . . . . . . Machines Disabled . | . . . . . . . . . . . . Actions | -11 -10 -10 -9 -9 -9 -8 -8 -7 -7 -7 -7 --------- Run | Yrd Mat Min Mat Min Exi Min Mat Fac Gar Fac Gar Total 10366 | 88 495 424 999 324 216 767 1087 301 578 3915 1172 Wait 2346 | 7 125 74 261 21 3 249 400 3 70 923 210 Move 7163 | 61 308 310 598 299 207 509 634 283 406 2850 698 Hop 11 | . . . . . . . 8 . . 1 2 Pick Up 106 | 10 12 2 17 . 1 1 13 1 2 22 25 Fast Attach 30 | . 2 . 5 . . 1 1 2 . 10 9 Attach 53 | 7 . 1 10 . . . 2 2 1 6 24 Detach 12 | . . . 4 . . . . 1 . 2 5 Swap 67 | . 5 4 18 . 1 . 2 7 9 14 7 Drop 101 | . 10 3 27 . 4 2 11 2 1 25 16 Fire 282 | 3 33 28 58 4 . 5 16 . 27 42 66 Melee 16 | . . . . . . . . . 2 2 12 Ram . | . . . . . . . . . . . . Kick . | . . . . . . . . . . . . Crush 1 | . . . 1 . . . . . . . . Escape Stasis 176 | . . . . . . . . . 60 18 98 Rewire . | . . . . . . . . . . . . Trap 2 | . . 2 . . . . . . . . . Miscellaneous . | . . . . . . . . . . . . Route ------- -11/Scrapyard -10/Materials (discovered 2 exits: [*Min x2]) -10/Mines -9/Materials (discovered 4 exits: *Mat x2 / *Min / Sto) -9/Mines (discovered 3 exits: *Mat x2 / *Exi) -9/Exiles -8/Mines -8/Materials -7/Factory (discovered 2 exits: [*Low] / Gar) -7/Garrison (discovered 2 exits: *Fac x2) -7/Factory (discovered 4 exits: [*Fac x2] / [*Low] / Gar) -7/Garrison (discovered 2 exits: [*Fac x2]) History --------- Turn | Location | Event 11 | -11/Scrapyard | Discovered new exit (range 15) 118 | -11/Scrapyard | Entered Materials 309 | -10/Materials | Build established: Mutant 641 | -10/Materials | Discovered new exit (range 6) 761 | -10/Materials | Discovered new exit (range 8) 860 | -10/Materials | Entered Mines 861 | -10/Mines | Assembled infested the area 992 | -10/Mines | Found a hidden stash of uninstalled traps 1234 | -10/Mines | A weapon hastily lodged in a ceiling crevice suddenly fell to the ground 1513 | -10/Mines | Discovered new exit (range 7) 1524 | -10/Mines | Entered Materials 1524 | -9/Materials | Evolved 2 slots: Utility x2 1565 | -9/Materials | Repaired Lgt. Treads? 2177 | -9/Materials | Discovered new exit (range 10) 2226 | -9/Materials | Identified exit to Mines 2226 | -9/Materials | Identified exit to Storage 2783 | -9/Materials | Discovered new exit (range 14) 2982 | -9/Materials | Entered Mines 3131 | -9/Mines | Assisted by bots powering up and referring to "LRC-V3" 3229 | -9/Mines | Discovered new exit (range 3) 3235 | -9/Mines | Discovered new exit (range 13) 3482 | -9/Mines | Deemed a non-threat by the Exiles lab entrance 3482 | -9/Mines | Discovered new exit (range 5) 3492 | -9/Mines | Entered Exiles 3492 | -9/Exiles | Accompanied by 3 allies 3536 | -9/Exiles | Met 8R-AWN 3558 | -9/Exiles | Met EX-HEX 3608 | -9/Exiles | Met EX-BIN 3627 | -9/Exiles | Aligned with FarCom system 3628 | -9/Exiles | Given EX-Vault access code 3665 | -9/Exiles | Opened EX-Vault 3678 | -9/Exiles | Found Flying Fortress v7 3710 | -9/Exiles | Warned to stay clear of 0b10 Research branches 3735 | -9/Exiles | Exiles lab attacked by MAIN.C 3814 | -9/Exiles | Discovered new exit (range 10) 3831 | -9/Exiles | Left Exiles lab with Flying Fortress v7 3831 | -9/Exiles | Entered Mines 3831 | -8/Mines | Accompanied by 3 allies 3889 | -8/Mines | Lost 4 allies 4905 | -8/Mines | Discovered new exit (range 5) 4913 | -8/Mines | Entered Materials 4913 | -8/Materials | Evolved 2 slots: Propulsion x2 5006 | -8/Materials | Repaired EM Pulse Cannon 5697 | -8/Materials | Discovered new exit (range 16) 5710 | -8/Materials | Entered Factory 5710 | -7/Factory | Evolved 2 slots: Power x1, Utility x1 5741 | -7/Factory | Discovered new exit (range 16) 5864 | -7/Factory | Identified exit to Garrison 5872 | -7/Factory | Entered Garrison 6038 | -7/Garrison | Triggered checkpoint 6084 | -7/Garrison | Destroyed 12 combat bots 6194 | -7/Garrison | Discovered new exit (range 15) 6204 | -7/Garrison | Installed Relay Interface Framework 6242 | -7/Garrison | Triggered checkpoint 6264 | -7/Garrison | Discovered new exit (range 9) 6284 | -7/Garrison | Triggered checkpoint 6299 | -7/Garrison | Entered Factory 6299 | -7/Factory | Discovered new exit (range 16) 6510 | -7/Factory | Discovered new exit (range 12) 6606 | -7/Factory | Fabricated Gravmag System? 7352 | -7/Factory | Discovered new exit (range 13) 8799 | -7/Factory | Identified exit to Garrison 8799 | -7/Factory | Entered Garrison 8965 | -7/Garrison | Triggered checkpoint 8999 | -7/Garrison | Garrison Relay disabled 9121 | -7/Garrison | Triggered checkpoint 9141 | -7/Garrison | Triggered checkpoint 9173 | -7/Garrison | Triggered checkpoint 9186 | -7/Garrison | Core integrity fell below 50% 9206 | -7/Garrison | Lost 3 allies 9232 | -7/Garrison | Core integrity fell below 20% 9234 | -7/Garrison | Discovered new exit (range 14) 9258 | -7/Garrison | Lost 13 parts (2p5n2u4w) 9377 | -7/Garrison | Triggered checkpoint 9411 | -7/Garrison | Garrison Relay disabled 9617 | -7/Garrison | Build established: Scavenger-Mutant 9772 | -7/Garrison | Discovered new exit (range 11) 9809 | -7/Garrison | Garrison Relay disabled 9821 | -7/Garrison | Destroyed by Y-54 Guardian with Gatling Laser Last Messages --------------- 09774_ Triggered Alarm Trap. 09774_ An alarm sounds. 09780_ Acquired Plasma Cannon. 09785_ Dropped Plasma Cannon. 09804_ Slug penetrates Wall. 09809_ Slug penetrates Garrison Relay. 09809_ Garrison Relay disabled. 09809_ Relay Coupler [Heavy] tumbles out of relay unit. 09809_ Relay Coupler [Grunt] tumbles out of relay unit. 09809_ Relay Coupler [NC] tumbles out of relay unit. 09809_ Relay Coupler [Duelist] tumbles out of relay unit. 09809_ Relay Coupler [Cutter] tumbles out of relay unit. 09811_ Acquired Relay Coupler [Duelist]. 09812_ Acquired Relay Coupler [Grunt]. 09818_ System corrupted: Energy discharge (-36). Map ----- +----------------------------------------------------+ | ???### # ## #????????????????????????????? | | ###### ## ## #############????????????????? | | =% #????????????????? | | ^ * [ #????????????????? | | ^ ########## #????????????????? | | ########### =# ###????????# #????????????????? | | ??????????# *%# # #?????????# #????????????????? | | ??????????####+### #?????????# #????????????????? | | ???????????????????#?????????# #????????????????? | | ?????????????????????????????# #????????????????? | | ?????????????????????????????# #????????????????? | | ?????????????????????????????# #????????????????? | | ?????????????????????????????# #############????? | | ??????????????????????##?????# #????? | | ??????????????????????# ###### #????? | | ??????????????????????? + ######### < #????? | | ????????????????????????# #######????????????????? | | ????????????????????????# #??????????????????????? | | ????????????????????????# #??????????????????????? | | ???????????????########## "s?????????????????????? | | ???????????????# "s?????????????????????? | | ??????????????## ######## "s?????????????????????? | | ??????????????#] !#?????# #??????????????????????? | | ??????????????#] !#?????# #??????????????????????? | | ??????????????#] !#?????# #??????????????????????? | | ############??#] !#?????#@#??????????????????????? | | # #??#####???### #???"?"????????????????? | | ! #??????????#"#Y#???"?"????????????????? | | # #??????????#" #???"?"????????????????? | | # * #??????????#!!!#???"""????????????????? | | # #??????????#" #??????????????????????? | | # ![ [#??????????#"###??????????????????????? | | # ! #??????????##?Y???????????????????????? | | # #?????????????????????????????????????? | | # * #?????????????????????????????????????? | | # #?????????????????????????????????????? | | ############?????????????????????????????????????? | | ?????????????????????????????????????????????????? | | ?????????????????????????????????????????????????? | | ?????????????????????????????????????????????????? | | ?????????????????????????????????????????????????? | | ?????????????????????????????????????????????????? | | ?????????????????????????????????????????????????? | | ?????????????????????????????????????????????????? | | ?????????????????????????????????????????????????? | | ?????????????????????????????????????????????????? | | ?????????????????????????????????????????????????? | | ?????????????????????????????????????????????????? | | | | | +----------------------------------------------------+ Best States ------------- Heat Dissipation 61 Energy Generation 34 Energy Capacity 460 Matter Stores 300 Matter Capacity 300 Sight Range 16 Terrain Scan Density 10 Jamming Range 12 Additional Mass Support 9 EM Shielding 4 Armor Coverage 300 Evasion (%) 64 Targeting Accuracy 8 Target Analysis 6 Recoil Reduction 2 Particle Charging 15 Offensive Hacking 10 Relay Coupler Types 3 Relay Coupler Value 69 Item Schematics ----------------- None Robot Schematics ------------------ None Fabricated ------------ Gravmag System | x2 | -7/Factory | Preloaded Alien Tech Used ----------------- None Achievements -------------- Assimilation Complete Challenges ------------ None Game ------ Seed BarrageMicrodissipatorLeg Manual? 0 Play Time 02:46:43 Cumulative 31.7 hours Start 2025.05.04 @ 10:57:43 End 2025.05.04 @ 14:19:23 Sessions 1 Manual Loads 0 Difficulty Rogue Special Mode None Game No. 25 Rogue 25 Adventurer 0 Explorer 0 Win Type - Total 0 Types 0/0/0/0/0/0/0/0/0 Lore% 11 Gallery% 28 Achievement% 30 Wizard Run 0 Options --------- Layout 1 ASCII 0 Keyboard 0 Movement Mouse Keybinds 0 Fullscreen 1 Font 32/SmallcapsGlow Map View 50x35 Zoom Use 0% Tactical HUD 1 Map Filters NONE Filters NONE Steam 1 RUN: cab8f8c4-7165-483f-8630-454b84290ae9